[Event "Titled Tuesday Blitz April 11 Late 2023"]
[White "Grigorjev, Iljya"]
[Black "Rastbod, Ali"]
[WhiteFideId "24159565"]
[BlackFideId "12567477"]
[WhiteElo "2323"]
[BlackElo "2248"]
[Result "1/2-1/2"]
[Round "06"]
[TimeControl "180+2"]
[Date "2023.04.11"]
[WhiteClock "0:00:03"]
[BlackClock "0:00:05"]

1. d4 {[%clk 0:03:00]}  Nf6 {[%clk 0:02:59]} 2. c4 {[%clk 0:03:01]}  e6 {[%clk 0:03:00]} 3. Nc3 {[%clk 0:03:01]}  Bb4 {[%clk 0:03:00]} 4. e3 {[%clk 0:03:02]}  O-O {[%clk 0:03:00]} 5. Bd3 {[%clk 0:03:02]}  d5 {[%clk 0:03:01]} 6. a3 {[%clk 0:03:02]}  Bxc3+ {[%clk 0:03:00]} 7. bxc3 {[%clk 0:03:03]}  dxc4 {[%clk 0:03:00]} 8. Bxc4 {[%clk 0:03:04]}  c5 {[%clk 0:03:01]} 9. Ne2 {[%clk 0:03:03]}  Qc7 {[%clk 0:03:02]} 10. Bd3 {[%clk 0:03:04]}  Nc6 {[%clk 0:02:53]} 11. O-O {[%clk 0:02:58]}  e5 {[%clk 0:02:53]} 12. Ng3 {[%clk 0:02:55]}  Be6 {[%clk 0:02:52]} 13. f4 {[%clk 0:02:50]}  exd4 {[%clk 0:02:43]} 14. cxd4 {[%clk 0:02:49]}  Rad8 {[%clk 0:02:27]} 15. Rb1 {[%clk 0:02:47]}  Rfe8 {[%clk 0:02:22]} 16. Nh5 {[%clk 0:02:39]}  Qe7 {[%clk 0:01:42]} 17. Nxf6+ {[%clk 0:02:33]}  Qxf6 {[%clk 0:01:43]} 18. Rxb7 {[%clk 0:02:33]}  Bd5 {[%clk 0:01:34]} 19. Qh5 {[%clk 0:01:33]}  g6 {[%clk 0:01:32]} 20. Qg5 {[%clk 0:01:32]}  Qxg5 {[%clk 0:01:17]} 21. fxg5 {[%clk 0:01:33]}  Ne5 {[%clk 0:01:17]} 22. Bb5 {[%clk 0:01:10]}  Bxb7 {[%clk 0:00:35]} 23. Bxe8 {[%clk 0:01:10]}  cxd4 {[%clk 0:00:31]} 24. exd4 {[%clk 0:00:52]}  Rxd4 {[%clk 0:00:32]} 25. Bf4 {[%clk 0:00:41]}  Nf3+ {[%clk 0:00:19]} 26. gxf3 {[%clk 0:00:34]}  Rxf4 {[%clk 0:00:19]} 27. Rc1 {[%clk 0:00:17]}  Bxf3 {[%clk 0:00:10]} 28. Rc7 {[%clk 0:00:18]}  a5 {[%clk 0:00:10]} 29. h4 {[%clk 0:00:15]}  Bd5 {[%clk 0:00:08]} 30. Rc5 {[%clk 0:00:13]}  Be6 {[%clk 0:00:07]} 31. Rxa5 {[%clk 0:00:13]}  Rxh4 {[%clk 0:00:07]} 32. a4 {[%clk 0:00:10]}  Kg7 {[%clk 0:00:06]} 33. Kf2 {[%clk 0:00:08]}  Rh2+ {[%clk 0:00:06]} 34. Ke3 {[%clk 0:00:06]}  Ra2 {[%clk 0:00:07]} 35. Ra7 {[%clk 0:00:05]}  Rg2 {[%clk 0:00:04]} 36. Ra5 {[%clk 0:00:02]}  h6 {[%clk 0:00:03]} 37. gxh6+ {[%clk 0:00:03]}  Kxh6 {[%clk 0:00:04]} 38. Rc5 {[%clk 0:00:04]}  Ra2 {[%clk 0:00:04]} 39. a5 {[%clk 0:00:04]}  Kg7 {[%clk 0:00:04]} 40. Bc6 {[%clk 0:00:05]}  Kf6 {[%clk 0:00:04]} 41. Bb7 {[%clk 0:00:05]}  Ke7 {[%clk 0:00:03]} 42. a6 {[%clk 0:00:06]}  Kd6 {[%clk 0:00:04]} 43. Rc6+ {[%clk 0:00:07]}  Ke5 {[%clk 0:00:04]} 44. Rc5+ {[%clk 0:00:07]}  Kd6 {[%clk 0:00:04]} 45. Rc1 {[%clk 0:00:07]}  f5 {[%clk 0:00:03]} 46. Kf4 {[%clk 0:00:07]}  Ra4+ {[%clk 0:00:03]} 47. Kg5 {[%clk 0:00:07]}  Bd7 {[%clk 0:00:03]} 48. Rd1+ {[%clk 0:00:05]}  Kc7 {[%clk 0:00:03]} 49. Kxg6 {[%clk 0:00:03]}  Bb5 {[%clk 0:00:03]} 50. Rc1+ {[%clk 0:00:02]}  Kb6 {[%clk 0:00:03]} 51. Rb1 {[%clk 0:00:03]}  Kc5 {[%clk 0:00:03]} 52. Kg5 {[%clk 0:00:02]}  Bxa6 {[%clk 0:00:03]} 53. Bxa6 {[%clk 0:00:02]}  Rxa6 {[%clk 0:00:04]} 54. Kxf5 {[%clk 0:00:03]}  Rb6 {[%clk 0:00:05]} 55. Rxb6 {[%clk 0:00:03]}  Kxb6 {[%clk 0:00:05]} 1/2-1/2


[Site "https://www.chess.com"]

[Event "Titled Tuesday Blitz April 11 Late 2023"]
[White "Duda, Jan-Krzysztof"]
[Black "Mortazavi, Ali"]
[WhiteFideId "1170546"]
[BlackFideId "401323"]
[WhiteElo "2790"]
[BlackElo "2339"]
[Result "0-1"]
[Round "06"]
[TimeControl "180+2"]
[Date "2023.04.11"]
[WhiteClock "0:00:07"]
[BlackClock "0:00:02"]

1. d4 {[%clk 0:03:00]}  Nf6 {[%clk 0:02:59]} 2. c4 {[%clk 0:02:59]}  g6 {[%clk 0:02:59]} 3. Nc3 {[%clk 0:02:59]}  Bg7 {[%clk 0:03:00]} 4. e4 {[%clk 0:03:00]}  O-O {[%clk 0:03:01]} 5. Bd3 {[%clk 0:03:00]}  d6 {[%clk 0:03:01]} 6. Nge2 {[%clk 0:03:00]}  Nc6 {[%clk 0:03:02]} 7. f3 {[%clk 0:02:57]}  Nh5 {[%clk 0:03:02]} 8. Be3 {[%clk 0:02:57]}  e5 {[%clk 0:03:02]} 9. d5 {[%clk 0:02:57]}  Nd4 {[%clk 0:03:02]} 10. O-O {[%clk 0:02:56]}  c5 {[%clk 0:03:02]} 11. dxc6 {[%clk 0:02:55]}  bxc6 {[%clk 0:03:03]} 12. b4 {[%clk 0:02:55]}  c5 {[%clk 0:03:02]} 13. b5 {[%clk 0:02:54]}  f5 {[%clk 0:02:56]} 14. exf5 {[%clk 0:02:48]}  gxf5 {[%clk 0:02:55]} 15. Nd5 {[%clk 0:02:48]}  Kh8 {[%clk 0:02:53]} 16. a4 {[%clk 0:02:45]}  Rg8 {[%clk 0:02:44]} 17. a5 {[%clk 0:02:41]}  Be6 {[%clk 0:02:29]} 18. Nec3 {[%clk 0:02:41]}  Bf7 {[%clk 0:02:11]} 19. Kh1 {[%clk 0:02:38]}  Qh4 {[%clk 0:02:03]} 20. Bf2 {[%clk 0:02:37]}  Qg5 {[%clk 0:02:01]} 21. Rg1 {[%clk 0:02:25]}  e4 {[%clk 0:01:31]} 22. fxe4 {[%clk 0:02:24]}  f4 {[%clk 0:01:31]} 23. b6 {[%clk 0:01:59]}  Be5 {[%clk 0:01:17]} 24. b7 {[%clk 0:01:48]}  Rab8 {[%clk 0:01:16]} 25. a6 {[%clk 0:01:49]}  Qh6 {[%clk 0:01:09]} 26. Ne7 {[%clk 0:01:37]}  Ng3+ {[%clk 0:00:54]} 27. Bxg3 {[%clk 0:01:35]}  Rxg3 {[%clk 0:00:39]} 28. Ne2 {[%clk 0:01:26]}  f3 {[%clk 0:00:32]} 29. Nxg3 {[%clk 0:01:14]}  Bxg3 {[%clk 0:00:22]} 30. h3 {[%clk 0:01:15]}  Be6 {[%clk 0:00:11]} 31. Nf5 {[%clk 0:01:10]}  Bxf5 {[%clk 0:00:09]} 32. exf5 {[%clk 0:01:11]}  Rg8 {[%clk 0:00:06]} 33. Be4 {[%clk 0:00:57]}  fxg2+ {[%clk 0:00:04]} 34. Bxg2 {[%clk 0:00:50]}  Be5 {[%clk 0:00:03]} 35. Ra3 {[%clk 0:00:45]}  Qf4 {[%clk 0:00:02]} 36. Rg3 {[%clk 0:00:07]}  Qxg3 {[%clk 0:00:02]} 0-1


[Site "https://www.chess.com"]

[Event "Titled Tuesday Blitz April 11 Late 2023"]
[White "Sadhwani, Raunak"]
[Black "Yanchenko, Roman"]
[WhiteFideId "35093487"]
[BlackFideId "4137329"]
[WhiteElo "2631"]
[BlackElo "2491"]
[Result "0-1"]
[Round "06"]
[TimeControl "180+2"]
[Date "2023.04.11"]
[WhiteClock "0:00:14"]
[BlackClock "0:00:44"]

1. Nf3 {[%clk 0:03:00]}  Nf6 {[%clk 0:02:59]} 2. b3 {[%clk 0:03:01]}  d5 {[%clk 0:02:59]} 3. Bb2 {[%clk 0:03:01]}  Bf5 {[%clk 0:02:59]} 4. g3 {[%clk 0:02:59]}  e6 {[%clk 0:02:58]} 5. Bg2 {[%clk 0:03:00]}  Be7 {[%clk 0:02:57]} 6. O-O {[%clk 0:03:00]}  O-O {[%clk 0:02:56]} 7. d3 {[%clk 0:03:01]}  Nbd7 {[%clk 0:02:55]} 8. Nbd2 {[%clk 0:03:01]}  h6 {[%clk 0:02:53]} 9. Re1 {[%clk 0:03:01]}  c6 {[%clk 0:02:53]} 10. e4 {[%clk 0:03:01]}  dxe4 {[%clk 0:02:53]} 11. dxe4 {[%clk 0:03:01]}  Bh7 {[%clk 0:02:54]} 12. Qe2 {[%clk 0:03:01]}  Qc7 {[%clk 0:02:51]} 13. h3 {[%clk 0:02:59]}  Rad8 {[%clk 0:02:50]} 14. a3 {[%clk 0:02:58]}  a5 {[%clk 0:02:48]} 15. Rad1 {[%clk 0:02:58]}  Bc5 {[%clk 0:02:48]} 16. Kh1 {[%clk 0:02:56]}  Ba7 {[%clk 0:02:47]} 17. Nh2 {[%clk 0:02:52]}  Qb6 {[%clk 0:02:09]} 18. Rf1 {[%clk 0:02:44]}  a4 {[%clk 0:02:03]} 19. b4 {[%clk 0:02:40]}  Qc7 {[%clk 0:01:59]} 20. f4 {[%clk 0:02:35]}  Rfe8 {[%clk 0:01:46]} 21. Ng4 {[%clk 0:02:29]}  Nxg4 {[%clk 0:01:41]} 22. Qxg4 {[%clk 0:02:30]}  e5 {[%clk 0:01:40]} 23. f5 {[%clk 0:02:30]}  Kh8 {[%clk 0:01:36]} 24. Qe2 {[%clk 0:02:25]}  Bg8 {[%clk 0:01:34]} 25. Nf3 {[%clk 0:02:20]}  f6 {[%clk 0:01:34]} 26. g4 {[%clk 0:02:11]}  b5 {[%clk 0:01:29]} 27. Nd2 {[%clk 0:01:52]}  Nb6 {[%clk 0:01:27]} 28. Bc1 {[%clk 0:01:51]}  Nc4 {[%clk 0:01:27]} 29. Nf3 {[%clk 0:01:52]}  Nd6 {[%clk 0:01:25]} 30. Nd2 {[%clk 0:01:21]}  Bc4 {[%clk 0:01:24]} 31. Nxc4 {[%clk 0:01:21]}  Nxc4 {[%clk 0:01:25]} 32. h4 {[%clk 0:01:21]}  Rxd1 {[%clk 0:01:24]} 33. Rxd1 {[%clk 0:01:22]}  Rd8 {[%clk 0:01:25]} 34. g5 {[%clk 0:01:22]}  Rxd1+ {[%clk 0:01:15]} 35. Qxd1 {[%clk 0:01:23]}  Be3 {[%clk 0:01:16]} 36. Bxe3 {[%clk 0:01:05]}  Nxe3 {[%clk 0:01:16]} 37. Qh5 {[%clk 0:01:06]}  Qd8 {[%clk 0:01:07]} 38. gxf6 {[%clk 0:00:55]}  Qxf6 {[%clk 0:00:56]} 39. Bf3 {[%clk 0:00:55]}  Kh7 {[%clk 0:00:48]} 40. Kg1 {[%clk 0:00:52]}  g6 {[%clk 0:00:48]} 41. fxg6+ {[%clk 0:00:48]}  Qxg6+ {[%clk 0:00:48]} 42. Qxg6+ {[%clk 0:00:46]}  Kxg6 {[%clk 0:00:49]} 43. c3 {[%clk 0:00:43]}  Kf6 {[%clk 0:00:48]} 44. Kf2 {[%clk 0:00:19]}  Nc4 {[%clk 0:00:48]} 45. Ke2 {[%clk 0:00:13]}  Nxa3 {[%clk 0:00:48]} 46. Kd3 {[%clk 0:00:13]}  Nc4 {[%clk 0:00:48]} 47. Kc2 {[%clk 0:00:14]}  a3 {[%clk 0:00:44]} 0-1


[Site "https://www.chess.com"]

[Event "Titled Tuesday Blitz April 11 Late 2023"]
[White "Kamsky, Gata"]
[Black "Nazari, Arad"]
[WhiteFideId "2000024"]
[BlackFideId "12577324"]
[WhiteElo "2660"]
[BlackElo "2242"]
[Result "1-0"]
[Round "06"]
[TimeControl "180+2"]
[Date "2023.04.11"]
[WhiteClock "0:00:44"]
[BlackClock "0:00:01"]

1. d4 {[%clk 0:03:00]}  Nf6 {[%clk 0:02:43]} 2. Nf3 {[%clk 0:02:59]}  g6 {[%clk 0:02:42]} 3. c3 {[%clk 0:02:59]}  Bg7 {[%clk 0:02:42]} 4. Bf4 {[%clk 0:02:59]}  O-O {[%clk 0:02:42]} 5. Nbd2 {[%clk 0:02:58]}  b6 {[%clk 0:02:41]} 6. h3 {[%clk 0:02:57]}  Bb7 {[%clk 0:02:41]} 7. e3 {[%clk 0:02:57]}  d6 {[%clk 0:02:39]} 8. a4 {[%clk 0:02:57]}  a6 {[%clk 0:02:39]} 9. Bc4 {[%clk 0:02:54]}  Nbd7 {[%clk 0:02:36]} 10. O-O {[%clk 0:02:53]}  Ne4 {[%clk 0:02:33]} 11. Nxe4 {[%clk 0:02:37]}  Bxe4 {[%clk 0:02:34]} 12. Bh2 {[%clk 0:02:21]}  e5 {[%clk 0:02:21]} 13. Nd2 {[%clk 0:02:10]}  Bb7 {[%clk 0:02:16]} 14. Re1 {[%clk 0:02:10]}  Qe7 {[%clk 0:02:06]} 15. b4 {[%clk 0:02:07]}  Rfe8 {[%clk 0:02:03]} 16. Nf3 {[%clk 0:02:05]}  h6 {[%clk 0:01:54]} 17. Rc1 {[%clk 0:01:54]}  Kh7 {[%clk 0:01:50]} 18. Bf1 {[%clk 0:01:50]}  f5 {[%clk 0:01:42]} 19. a5 {[%clk 0:01:47]}  b5 {[%clk 0:01:34]} 20. c4 {[%clk 0:01:46]}  bxc4 {[%clk 0:01:25]} 21. Rxc4 {[%clk 0:01:45]}  Rec8 {[%clk 0:01:12]} 22. dxe5 {[%clk 0:01:45]}  dxe5 {[%clk 0:00:58]} 23. Qc2 {[%clk 0:01:41]}  c5 {[%clk 0:00:48]} 24. bxc5 {[%clk 0:01:35]}  Bxf3 {[%clk 0:00:46]} 25. gxf3 {[%clk 0:01:33]}  Rxc5 {[%clk 0:00:47]} 26. Rxc5 {[%clk 0:01:31]}  Qxc5 {[%clk 0:00:46]} 27. Qxc5 {[%clk 0:01:27]}  Nxc5 {[%clk 0:00:47]} 28. Rb1 {[%clk 0:01:23]}  g5 {[%clk 0:00:29]} 29. f4 {[%clk 0:01:20]}  gxf4 {[%clk 0:00:27]} 30. exf4 {[%clk 0:01:20]}  e4 {[%clk 0:00:28]} 31. Bg3 {[%clk 0:01:15]}  Bd4 {[%clk 0:00:28]} 32. Kh2 {[%clk 0:01:09]}  Rd8 {[%clk 0:00:22]} 33. Rb6 {[%clk 0:01:04]}  e3 {[%clk 0:00:20]} 34. fxe3 {[%clk 0:01:04]}  Bxe3 {[%clk 0:00:20]} 35. Rb2 {[%clk 0:00:55]}  Rd2+ {[%clk 0:00:21]} 36. Rxd2 {[%clk 0:00:54]}  Bxd2 {[%clk 0:00:22]} 37. Bf2 {[%clk 0:00:54]}  Ne4 {[%clk 0:00:20]} 38. Bd4 {[%clk 0:00:53]}  Bxf4+ {[%clk 0:00:20]} 39. Kg2 {[%clk 0:00:53]}  Bc7 {[%clk 0:00:21]} 40. Bb6 {[%clk 0:00:53]}  Bxb6 {[%clk 0:00:15]} 41. axb6 {[%clk 0:00:53]}  Nc5 {[%clk 0:00:16]} 42. Kf3 {[%clk 0:00:50]}  a5 {[%clk 0:00:14]} 43. Ke3 {[%clk 0:00:49]}  a4 {[%clk 0:00:15]} 44. Kd4 {[%clk 0:00:48]}  a3 {[%clk 0:00:15]} 45. Bc4 {[%clk 0:00:48]}  Nb7 {[%clk 0:00:16]} 46. Kc3 {[%clk 0:00:46]}  f4 {[%clk 0:00:14]} 47. Bd5 {[%clk 0:00:44]}  Nd6 {[%clk 0:00:10]} 48. Kb3 {[%clk 0:00:44]}  Kg6 {[%clk 0:00:09]} 49. Kxa3 {[%clk 0:00:44]}  Kf5 {[%clk 0:00:09]} 50. Kb4 {[%clk 0:00:44]}  Ke5 {[%clk 0:00:09]} 51. Kc5 {[%clk 0:00:45]}  h5 {[%clk 0:00:01]} 52. h4 {[%clk 0:00:44]} 1-0


[Site "https://www.chess.com"]

[Event "Titled Tuesday Blitz April 11 Late 2023"]
[White "Kovalev, Vladislav"]
[Black "Kleiman, Jake"]
[WhiteFideId "13504398"]
[BlackFideId "2020041"]
[WhiteElo "2555"]
[BlackElo "2399"]
[Result "1/2-1/2"]
[Round "06"]
[TimeControl "180+2"]
[Date "2023.04.11"]
[WhiteClock "0:00:10"]
[BlackClock "0:00:16"]

1. e4 {[%clk 0:03:00]}  e5 {[%clk 0:02:58]} 2. Nf3 {[%clk 0:03:00]}  Nc6 {[%clk 0:02:57]} 3. Bb5 {[%clk 0:03:00]}  a6 {[%clk 0:02:58]} 4. Ba4 {[%clk 0:03:00]}  Nf6 {[%clk 0:02:57]} 5. O-O {[%clk 0:03:00]}  b5 {[%clk 0:02:58]} 6. Bb3 {[%clk 0:03:01]}  Bc5 {[%clk 0:02:59]} 7. d3 {[%clk 0:03:00]}  d6 {[%clk 0:02:59]} 8. a4 {[%clk 0:02:59]}  Rb8 {[%clk 0:02:57]} 9. axb5 {[%clk 0:02:59]}  axb5 {[%clk 0:02:58]} 10. h3 {[%clk 0:02:52]}  O-O {[%clk 0:02:58]} 11. Nc3 {[%clk 0:02:52]}  h6 {[%clk 0:02:58]} 12. Be3 {[%clk 0:02:36]}  Bb6 {[%clk 0:02:57]} 13. Bxb6 {[%clk 0:02:30]}  Rxb6 {[%clk 0:02:57]} 14. Ra8 {[%clk 0:02:30]}  Qe7 {[%clk 0:02:54]} 15. Qd2 {[%clk 0:01:58]}  Bd7 {[%clk 0:02:47]} 16. Rxf8+ {[%clk 0:01:55]}  Qxf8 {[%clk 0:02:48]} 17. Ra1 {[%clk 0:01:55]}  Rb8 {[%clk 0:02:45]} 18. Nd5 {[%clk 0:01:36]}  Nxd5 {[%clk 0:02:45]} 19. Bxd5 {[%clk 0:01:37]}  Ne7 {[%clk 0:02:46]} 20. Bb3 {[%clk 0:01:35]}  Ra8 {[%clk 0:02:39]} 21. Ra5 {[%clk 0:01:21]}  Ng6 {[%clk 0:02:31]} 22. Qe1 {[%clk 0:01:06]}  Nf4 {[%clk 0:02:23]} 23. Qa1 {[%clk 0:01:07]}  Bc6 {[%clk 0:02:17]} 24. Qa2 {[%clk 0:00:54]}  Rxa5 {[%clk 0:02:14]} 25. Qxa5 {[%clk 0:00:55]}  Qb8 {[%clk 0:02:14]} 26. Kf1 {[%clk 0:00:47]}  Bd7 {[%clk 0:02:00]} 27. Ng1 {[%clk 0:00:28]}  Kf8 {[%clk 0:01:58]} 28. Ne2 {[%clk 0:00:27]}  Ne6 {[%clk 0:01:43]} 29. c3 {[%clk 0:00:22]}  Nc5 {[%clk 0:01:39]} 30. Bc2 {[%clk 0:00:23]}  Bc6 {[%clk 0:01:32]} 31. b4 {[%clk 0:00:22]}  Ne6 {[%clk 0:01:32]} 32. Bb3 {[%clk 0:00:22]}  Qb7 {[%clk 0:01:23]} 33. f3 {[%clk 0:00:21]}  d5 {[%clk 0:01:19]} 34. Qa2 {[%clk 0:00:14]}  dxe4 {[%clk 0:01:19]} 35. dxe4 {[%clk 0:00:13]}  Nd8 {[%clk 0:01:17]} 36. h4 {[%clk 0:00:11]}  Qb6 {[%clk 0:01:12]} 37. Qd2 {[%clk 0:00:11]}  Ke8 {[%clk 0:01:12]} 38. Ng3 {[%clk 0:00:12]}  Bd7 {[%clk 0:01:08]} 39. Nf5 {[%clk 0:00:07]}  Bxf5 {[%clk 0:00:50]} 40. exf5 {[%clk 0:00:08]}  Qf6 {[%clk 0:00:50]} 41. Qd3 {[%clk 0:00:02]}  c6 {[%clk 0:00:48]} 42. g3 {[%clk 0:00:03]}  Nb7 {[%clk 0:00:45]} 43. Qe4 {[%clk 0:00:03]}  Kd7 {[%clk 0:00:44]} 44. Ke2 {[%clk 0:00:03]}  Nd6 {[%clk 0:00:44]} 45. Qd3 {[%clk 0:00:03]}  Kc7 {[%clk 0:00:34]} 46. g4 {[%clk 0:00:03]}  Qxh4 {[%clk 0:00:34]} 47. Qe3 {[%clk 0:00:03]}  Kb7 {[%clk 0:00:28]} 48. Qxe5 {[%clk 0:00:03]}  Qd8 {[%clk 0:00:26]} 49. Ke3 {[%clk 0:00:02]}  Kc7 {[%clk 0:00:25]} 50. Kf2 {[%clk 0:00:03]}  Qh4+ {[%clk 0:00:24]} 51. Kg2 {[%clk 0:00:03]}  Qd8 {[%clk 0:00:23]} 52. Qxg7 {[%clk 0:00:03]}  Qe7 {[%clk 0:00:21]} 53. Kf2 {[%clk 0:00:03]}  Qh4+ {[%clk 0:00:20]} 54. Kg1 {[%clk 0:00:03]}  Qg3+ {[%clk 0:00:20]} 55. Kf1 {[%clk 0:00:04]}  Qxf3+ {[%clk 0:00:20]} 56. Kg1 {[%clk 0:00:05]}  Qe3+ {[%clk 0:00:20]} 57. Kg2 {[%clk 0:00:05]}  Qe4+ {[%clk 0:00:20]} 58. Kg3 {[%clk 0:00:05]}  Qe3+ {[%clk 0:00:20]} 59. Kg2 {[%clk 0:00:06]}  Kb6 {[%clk 0:00:19]} 60. Qd4+ {[%clk 0:00:06]}  Qxd4 {[%clk 0:00:20]} 61. cxd4 {[%clk 0:00:06]}  f6 {[%clk 0:00:20]} 62. Kh3 {[%clk 0:00:06]}  Ne4 {[%clk 0:00:18]} 63. Kh4 {[%clk 0:00:06]}  Nd2 {[%clk 0:00:14]} 64. Bc2 {[%clk 0:00:06]}  Nf3+ {[%clk 0:00:13]} 65. Kh5 {[%clk 0:00:06]}  Nxd4 {[%clk 0:00:14]} 66. Bd1 {[%clk 0:00:06]}  c5 {[%clk 0:00:12]} 67. bxc5+ {[%clk 0:00:07]}  Kxc5 {[%clk 0:00:12]} 68. Kxh6 {[%clk 0:00:07]}  Kd6 {[%clk 0:00:13]} 69. g5 {[%clk 0:00:07]}  Nxf5+ {[%clk 0:00:12]} 70. Kg6 {[%clk 0:00:07]}  fxg5 {[%clk 0:00:12]} 71. Kxf5 {[%clk 0:00:07]}  Kc5 {[%clk 0:00:12]} 72. Kxg5 {[%clk 0:00:08]}  Kd4 {[%clk 0:00:13]} 73. Kf5 {[%clk 0:00:08]}  Kc3 {[%clk 0:00:14]} 74. Ke5 {[%clk 0:00:09]}  b4 {[%clk 0:00:15]} 75. Kd5 {[%clk 0:00:09]}  Kd2 {[%clk 0:00:16]} 76. Kc4 {[%clk 0:00:10]}  b3 {[%clk 0:00:16]} 77. Kxb3 {[%clk 0:00:10]} 1/2-1/2


[Site "https://www.chess.com"]

[Event "Titled Tuesday Blitz April 11 Late 2023"]
[White "Zarnicki, Pablo"]
[Black "Remizov, Yaroslav"]
[WhiteFideId "100137"]
[BlackFideId "34134015"]
[WhiteElo "2468"]
[BlackElo "2412"]
[Result "1-0"]
[Round "06"]
[TimeControl "180+2"]
[Date "2023.04.11"]
[WhiteClock "0:00:24"]
[BlackClock "0:00:11"]

1. e4 {[%clk 0:02:52]}  c6 {[%clk 0:02:59]} 2. d4 {[%clk 0:02:49]}  d5 {[%clk 0:03:00]} 3. e5 {[%clk 0:02:50]}  c5 {[%clk 0:03:01]} 4. Nf3 {[%clk 0:02:47]}  Nc6 {[%clk 0:02:58]} 5. dxc5 {[%clk 0:02:45]}  Bg4 {[%clk 0:02:58]} 6. c3 {[%clk 0:02:39]}  e6 {[%clk 0:02:53]} 7. h3 {[%clk 0:02:25]}  Bxf3 {[%clk 0:02:51]} 8. Qxf3 {[%clk 0:02:25]}  Nxe5 {[%clk 0:02:33]} 9. Bb5+ {[%clk 0:02:24]}  Nc6 {[%clk 0:02:34]} 10. b4 {[%clk 0:02:20]}  Nf6 {[%clk 0:02:28]} 11. O-O {[%clk 0:02:16]}  Be7 {[%clk 0:02:28]} 12. c4 {[%clk 0:02:16]}  O-O {[%clk 0:02:26]} 13. Bxc6 {[%clk 0:02:04]}  bxc6 {[%clk 0:02:25]} 14. Bb2 {[%clk 0:02:02]}  a5 {[%clk 0:02:04]} 15. a3 {[%clk 0:01:58]}  Qb8 {[%clk 0:02:04]} 16. cxd5 {[%clk 0:01:50]}  cxd5 {[%clk 0:01:51]} 17. Qc3 {[%clk 0:01:39]}  Rc8 {[%clk 0:01:26]} 18. Nd2 {[%clk 0:01:38]}  h6 {[%clk 0:01:19]} 19. Nb3 {[%clk 0:01:26]}  axb4 {[%clk 0:01:05]} 20. axb4 {[%clk 0:01:26]}  Rxa1 {[%clk 0:01:05]} 21. Rxa1 {[%clk 0:01:25]}  Bf8 {[%clk 0:00:57]} 22. Qg3 {[%clk 0:01:04]}  Ne4 {[%clk 0:00:36]} 23. Qxb8 {[%clk 0:00:54]}  Rxb8 {[%clk 0:00:37]} 24. Ba3 {[%clk 0:00:54]}  Nc3 {[%clk 0:00:30]} 25. Na5 {[%clk 0:00:49]}  e5 {[%clk 0:00:27]} 26. Nc6 {[%clk 0:00:41]}  Re8 {[%clk 0:00:26]} 27. Bb2 {[%clk 0:00:40]}  Nb5 {[%clk 0:00:10]} 28. Nxe5 {[%clk 0:00:37]}  d4 {[%clk 0:00:09]} 29. Nd3 {[%clk 0:00:34]}  Rb8 {[%clk 0:00:06]} 30. Kf1 {[%clk 0:00:34]}  Be7 {[%clk 0:00:06]} 31. Ra6 {[%clk 0:00:31]}  Bf6 {[%clk 0:00:05]} 32. Rb6 {[%clk 0:00:31]}  Rxb6 {[%clk 0:00:05]} 33. cxb6 {[%clk 0:00:32]}  Nd6 {[%clk 0:00:05]} 34. Nc5 {[%clk 0:00:31]}  Bd8 {[%clk 0:00:03]} 35. b7 {[%clk 0:00:31]}  Bc7 {[%clk 0:00:03]} 36. Na6 {[%clk 0:00:31]}  Nxb7 {[%clk 0:00:02]} 37. Nxc7 {[%clk 0:00:29]}  d3 {[%clk 0:00:02]} 38. Nd5 {[%clk 0:00:28]}  Nd6 {[%clk 0:00:03]} 39. Ke1 {[%clk 0:00:26]}  Nc4 {[%clk 0:00:03]} 40. Bc3 {[%clk 0:00:26]}  f6 {[%clk 0:00:03]} 41. Ne3 {[%clk 0:00:26]}  Nb6 {[%clk 0:00:01]} 42. Kd2 {[%clk 0:00:26]}  Kf7 {[%clk 0:00:02]} 43. Kxd3 {[%clk 0:00:26]}  Ke6 {[%clk 0:00:03]} 44. Bd4 {[%clk 0:00:26]}  Nc8 {[%clk 0:00:03]} 45. Bc5 {[%clk 0:00:26]}  Kd7 {[%clk 0:00:02]} 46. Nf5 {[%clk 0:00:25]}  g6 {[%clk 0:00:02]} 47. Nxh6 {[%clk 0:00:26]}  f5 {[%clk 0:00:03]} 48. g4 {[%clk 0:00:25]}  fxg4 {[%clk 0:00:03]} 49. hxg4 {[%clk 0:00:26]}  Ke6 {[%clk 0:00:04]} 50. f4 {[%clk 0:00:27]}  Kd5 {[%clk 0:00:04]} 51. f5 {[%clk 0:00:27]}  gxf5 {[%clk 0:00:03]} 52. gxf5 {[%clk 0:00:28]}  Na7 {[%clk 0:00:03]} 53. Bxa7 {[%clk 0:00:27]}  Kd6 {[%clk 0:00:03]} 54. Bc5+ {[%clk 0:00:27]}  Ke5 {[%clk 0:00:04]} 55. f6 {[%clk 0:00:27]}  Ke6 {[%clk 0:00:05]} 56. f7 {[%clk 0:00:24]}  Kd7 {[%clk 0:00:06]} 57. b5 {[%clk 0:00:22]}  Ke6 {[%clk 0:00:06]} 58. b6 {[%clk 0:00:22]}  Kd5 {[%clk 0:00:06]} 59. Bg1 {[%clk 0:00:20]}  Kc6 {[%clk 0:00:07]} 60. f8=Q {[%clk 0:00:20]}  Kd5 {[%clk 0:00:07]} 61. Qd6+ {[%clk 0:00:20]}  Kxd6 {[%clk 0:00:07]} 62. Kc4 {[%clk 0:00:20]}  Kc6 {[%clk 0:00:07]} 63. Kb4 {[%clk 0:00:20]}  Kb7 {[%clk 0:00:08]} 64. Kb5 {[%clk 0:00:20]}  Kc8 {[%clk 0:00:08]} 65. Kc6 {[%clk 0:00:21]}  Kb8 {[%clk 0:00:09]} 66. Bh2+ {[%clk 0:00:20]}  Ka8 {[%clk 0:00:09]} 67. b7+ {[%clk 0:00:21]}  Ka7 {[%clk 0:00:09]} 68. b8=Q+ {[%clk 0:00:21]}  Ka6 {[%clk 0:00:10]} 69. Qb7+ {[%clk 0:00:22]}  Ka5 {[%clk 0:00:10]} 70. Qb6+ {[%clk 0:00:22]}  Ka4 {[%clk 0:00:11]} 71. Qb2 {[%clk 0:00:23]}  Ka5 {[%clk 0:00:11]} 72. Qb3 {[%clk 0:00:24]}  Ka6 {[%clk 0:00:11]} 73. Qa2# {[%clk 0:00:24]} 1-0


[Site "https://www.chess.com"]